[Event "2e tournoi de GMI du Barreau de Paris"]
[Site "Paris, France"]
[Date "2021.06.20"]
[Round "3.3"]
[White "Milliet, Sophie"]
[Black "David, Alberto"]
[Result "1/2-1/2"]
[TimeControl "90+30"]
[WhiteElo "2407"]
[BlackElo "2527"]

1. e4 {[%clk 01:30:55]} {[%emt 00:00:04]} c5 {[%clk 01:30:49]} {[%emt
00:00:10]} 2. Nf3 {[%clk 01:31:20]} {[%emt 00:00:06]} e6 {[%clk 01:30:40]}
{[%emt 00:00:39]} 3. d4 {[%clk 01:31:46]} {[%emt 00:00:05]} cxd4 {[%clk
01:31:05]} {[%emt 00:00:04]} 4. Nxd4 {[%clk 01:32:13]} {[%emt 00:00:03]} Nc6
{[%clk 01:31:29]} {[%emt 00:00:05]} 5. Nc3 {[%clk 01:32:40]} {[%emt 00:00:04]}
d6 {[%clk 01:28:03]} {[%emt 00:03:56]} 6. Be3 {[%clk 01:31:01]} {[%emt
00:02:09]} Nf6 {[%clk 01:28:18]} {[%emt 00:00:14]} 7. f4 {[%clk 01:19:54]}
{[%emt 00:11:37]} e5 {[%clk 01:25:09]} {[%emt 00:03:40]} 8. Nxc6 {[%clk
01:15:51]} {[%emt 00:04:32]} bxc6 {[%clk 01:25:00]} {[%emt 00:00:38]} 9. Be2
{[%clk 01:15:51]} {[%emt 00:00:31]} Be7 {[%clk 01:06:39]} {[%emt 00:18:50]} 10.
fxe5 {[%clk 01:03:18]} {[%emt 00:13:03]} dxe5 {[%clk 01:06:39]} {[%emt
00:00:30]} 11. Qxd8+ {[%clk 01:03:40]} {[%emt 00:00:09]} Bxd8 {[%clk 01:07:02]}
{[%emt 00:00:07]} 12. O-O-O {[%clk 01:02:58]} {[%emt 00:01:12]} Bb6 {[%clk
01:00:14]} {[%emt 00:07:18]} 13. Bxb6 {[%clk 01:00:13]} {[%emt 00:03:16]} axb6
{[%clk 01:00:38]} {[%emt 00:00:05]} 14. Rd6 {[%clk 00:59:16]} {[%emt 00:01:27]}
Bd7 {[%clk 00:59:41]} {[%emt 00:01:27]} 15. Rhd1 {[%clk 00:58:21]} {[%emt
00:01:25]} Ke7 {[%clk 00:50:25]} {[%emt 00:09:46]} 16. b3 {[%clk 00:46:14]}
{[%emt 00:12:37]} Rhd8 {[%clk 00:42:39]} {[%emt 00:08:16]} 17. Bf3 {[%clk
00:44:38]} {[%emt 00:02:06]} Ne8 {[%clk 00:23:06]} {[%emt 00:20:03]} 18. R6d2
{[%clk 00:44:55]} {[%emt 00:00:13]} Be6 {[%clk 00:21:38]} {[%emt 00:01:58]} 19.
Rxd8 {[%clk 00:36:37]} {[%emt 00:08:49]} 1/2-1/2

[Event "2e tournoi de GMI du Barreau de Paris"]
[Site "Paris, France"]
[Date "2021.06.20"]
[Round "3.4"]
[White "Bellahcene, Bilel"]
[Black "Dardha, Daniel"]
[Result "0-1"]
[TimeControl "90+30"]
[WhiteElo "2499"]
[BlackElo "2503"]

1. e4 {[%clk 01:22:42]} {[%emt 00:08:17]} c5 {[%clk 01:30:43]} {[%emt
00:00:17]} 2. Nf3 {[%clk 01:23:07]} {[%emt 00:00:04]} Nc6 {[%clk 01:31:01]}
{[%emt 00:00:13]} 3. d4 {[%clk 01:23:33]} {[%emt 00:00:04]} cxd4 {[%clk
01:31:23]} {[%emt 00:00:07]} 4. Nxd4 {[%clk 01:23:56]} {[%emt 00:00:08]} e5
{[%clk 01:31:33]} {[%emt 00:00:19]} 5. Nb5 {[%clk 01:24:22]} {[%emt 00:00:05]}
d6 {[%clk 01:31:56]} {[%emt 00:00:07]} 6. N1c3 {[%clk 01:24:48]} {[%emt
00:00:04]} a6 {[%clk 01:32:20]} {[%emt 00:00:06]} 7. Na3 {[%clk 01:25:15]}
{[%emt 00:00:03]} Be6 {[%clk 01:32:13]} {[%emt 00:00:37]} 8. Nc4 {[%clk
01:25:00]} {[%emt 00:00:44]} Rb8 {[%clk 01:32:17]} {[%emt 00:00:28]} 9. Be3
{[%clk 01:25:13]} {[%emt 00:00:16]} b5 {[%clk 01:31:25]} {[%emt 00:01:22]} 10.
Nd2 {[%clk 01:25:38]} {[%emt 00:00:05]} Nf6 {[%clk 01:30:30]} {[%emt 00:01:25]}
11. a4 {[%clk 01:26:05]} {[%emt 00:00:03]} b4 {[%clk 01:26:21]} {[%emt
00:04:38]} 12. Nd5 {[%clk 01:26:30]} {[%emt 00:00:05]} Nxd5 {[%clk 01:22:19]}
{[%emt 00:04:32]} 13. exd5 {[%clk 01:26:56]} {[%emt 00:00:04]} Bxd5 {[%clk
01:22:43]} {[%emt 00:00:06]} 14. Bxa6 {[%clk 01:27:22]} {[%emt 00:00:05]} Be7
{[%clk 01:16:00]} {[%emt 00:07:12]} 15. Nb3 {[%clk 01:27:47]} {[%emt 00:00:06]}
Be6 {[%clk 01:12:12]} {[%emt 00:04:18]} 16. Bb5 {[%clk 01:25:04]} {[%emt
00:03:14]} Qc7 {[%clk 01:02:15]} {[%emt 00:10:27]} 17. Qf3 {[%clk 01:15:11]}
{[%emt 00:10:21]} d5 {[%clk 00:42:20]} {[%emt 00:20:25]} 18. Nc5 {[%clk
00:52:21]} {[%emt 00:23:20]} Bxc5 {[%clk 00:37:34]} {[%emt 00:05:16]} 19. Bxc5
{[%clk 00:52:49]} {[%emt 00:00:03]} f6 {[%clk 00:34:20]} {[%emt 00:03:43]} 20.
Bxb4 {[%clk 00:44:41]} {[%emt 00:08:38]} Kf7 {[%clk 00:30:30]} {[%emt
00:04:20]} 21. Bc5 {[%clk 00:32:22]} {[%emt 00:12:49]} Qa5+ {[%clk 00:22:59]}
{[%emt 00:08:01]} 22. b4 {[%clk 00:29:22]} {[%emt 00:03:31]} Nxb4 {[%clk
00:22:42]} {[%emt 00:00:46]} 23. O-O {[%clk 00:29:48]} {[%emt 00:00:04]} Rbc8
{[%clk 00:19:56]} {[%emt 00:03:17]} 24. Bxb4 {[%clk 00:20:32]} {[%emt
00:09:46]} Qxb4 {[%clk 00:20:23]} {[%emt 00:00:03]} 25. Rfc1 {[%clk 00:20:39]}
{[%emt 00:00:22]} Rc3 {[%clk 00:18:16]} {[%emt 00:02:36]} 26. Qh5+ {[%clk
00:20:08]} {[%emt 00:01:00]} g6 {[%clk 00:18:26]} {[%emt 00:00:21]} 27. Qh6
{[%clk 00:20:15]} {[%emt 00:00:23]} Qf8 {[%clk 00:13:42]} {[%emt 00:05:14]} 28.
Qd2 {[%clk 00:19:19]} {[%emt 00:01:26]} Qc5 {[%clk 00:11:55]} {[%emt 00:02:17]}
29. a5 {[%clk 00:19:29]} {[%emt 00:00:20]} Kg7 {[%clk 00:08:26]} {[%emt
00:03:58]} 30. a6 {[%clk 00:16:41]} {[%emt 00:03:19]} Ra8 {[%clk 00:07:50]}
{[%emt 00:01:06]} 31. Bf1 {[%clk 00:15:17]} {[%emt 00:01:55]} d4 {[%clk
00:06:34]} {[%emt 00:01:46]} 32. Rcb1 {[%clk 00:12:03]} {[%emt 00:03:44]} Bd5
{[%clk 00:06:09]} {[%emt 00:00:54]} 33. Rb5 {[%clk 00:11:38]} {[%emt 00:00:55]}
Qd6 {[%clk 00:06:03]} {[%emt 00:00:36]} 34. h4 {[%clk 00:11:33]} {[%emt
00:00:36]} Bc6 {[%clk 00:05:25]} {[%emt 00:01:07]} 35. Rba5 {[%clk 00:10:18]}
{[%emt 00:01:45]} Ra7 {[%clk 00:05:07]} {[%emt 00:00:48]} 36. Rb1 {[%clk
00:07:41]} {[%emt 00:03:07]} Ba8 {[%clk 00:03:19]} {[%emt 00:02:18]} 37. Rab5
{[%clk 00:07:11]} {[%emt 00:00:59]} Qxa6 {[%clk 00:01:39]} {[%emt 00:02:11]} 38.
Rxe5 {[%clk 00:06:09]} {[%emt 00:01:32]} Qd6 {[%clk 00:01:29]} {[%emt
00:00:39]} 39. Re2 {[%clk 00:05:45]} {[%emt 00:00:54]} Rac7 {[%clk 00:01:14]}
{[%emt 00:00:46]} 40. Rd1 {[%clk 00:02:45]} {[%emt 00:03:30]} R3c4 {[%clk
00:01:18]} {[%emt 00:00:26]} 41. h5 {[%clk 00:02:20]} {[%emt 00:00:55]} gxh5
{[%clk 00:01:20]} {[%emt 00:00:28]} 42. Qd3 {[%clk 00:02:24]} {[%emt 00:00:26]}
Bd5 {[%clk 00:01:14]} {[%emt 00:00:36]} 43. Red2 {[%clk 00:01:02]} {[%emt
00:01:52]} Bf7 {[%clk 00:00:42]} {[%emt 00:01:02]} 44. Qf3 {[%clk 00:01:18]}
{[%emt 00:00:14]} Rxc2 {[%clk 00:00:51]} {[%emt 00:00:21]} 45. Rxd4 {[%clk
00:01:45]} {[%emt 00:00:03]} Qe5 {[%clk 00:01:10]} {[%emt 00:00:10]} 46. Re4
{[%clk 00:01:39]} {[%emt 00:00:36]} Qg5 {[%clk 00:01:15]} {[%emt 00:00:26]} 47.
Ree1 {[%clk 00:01:47]} {[%emt 00:00:22]} h4 {[%clk 00:00:55]} {[%emt 00:00:50]}
48. Rd4 {[%clk 00:01:09]} {[%emt 00:01:07]} h5 {[%clk 00:01:03]} {[%emt
00:00:22]} 49. Kh2 {[%clk 00:00:46]} {[%emt 00:00:53]} Rc1 {[%clk 00:00:54]}
{[%emt 00:00:40]} 50. Rxc1 {[%clk 00:00:39]} {[%emt 00:00:37]} Rxc1 {[%clk
00:01:13]} {[%emt 00:00:11]} 51. Rd1 {[%clk 00:00:53]} {[%emt 00:00:15]} Rc2
{[%clk 00:00:59]} {[%emt 00:00:44]} 52. Bd3 {[%clk 00:01:15]} {[%emt 00:00:07]}
Bd5 {[%clk 00:00:47]} {[%emt 00:00:43]} 53. Qh3 {[%clk 00:00:44]} {[%emt
00:01:00]} Rxf2 {[%clk 00:00:43]} {[%emt 00:00:34]} 54. Bf1 {[%clk 00:01:29]}
{[%emt 00:00:13]} Bf7 {[%clk 00:00:43]} {[%emt 00:01:01]} 55. Re1 {[%clk
00:01:51]} {[%emt 00:00:08]} Qg4 {[%clk 00:00:47]} {[%emt 00:00:27]} 56. Qe3
{[%clk 00:02:06]} {[%emt 00:00:15]} Rf5 {[%clk 00:00:41]} {[%emt 00:00:36]} 57.
Be2 {[%clk 00:01:57]} {[%emt 00:00:39]} Qg5 {[%clk 00:01:00]} {[%emt 00:00:11]}
58. Bd3 {[%clk 00:01:57]} {[%emt 00:00:29]} Rd5 {[%clk 00:01:17]} {[%emt
00:00:13]} 59. Re2 {[%clk 00:02:06]} {[%emt 00:00:21]} Qg3+ {[%clk 00:01:38]}
{[%emt 00:00:09]} 0-1

[Event "2e tournoi de GMI du Barreau de Paris"]
[Site "Paris, France"]
[Date "2021.06.20"]
[Round "3.2"]
[White "Travadon, Loic"]
[Black "Feller, Sebastien"]
[Result "1/2-1/2"]
[TimeControl "90+30"]
[WhiteElo "2415"]
[BlackElo "2568"]

1. d4 {[%clk 01:30:56]} {[%emt 00:00:03]} d5 {[%clk 01:30:51]} {[%emt
00:00:10]} 2. c4 {[%clk 01:31:21]} {[%emt 00:00:04]} c6 {[%clk 01:31:13]}
{[%emt 00:00:07]} 3. cxd5 {[%clk 01:31:46]} {[%emt 00:00:05]} cxd5 {[%clk
01:31:39]} {[%emt 00:00:04]} 4. Bf4 {[%clk 01:32:10]} {[%emt 00:00:06]} Nc6
{[%clk 01:32:03]} {[%emt 00:00:06]} 5. e3 {[%clk 01:32:35]} {[%emt 00:00:04]}
Nf6 {[%clk 01:32:28]} {[%emt 00:00:05]} 6. Nc3 {[%clk 01:33:00]} {[%emt
00:00:05]} Bf5 {[%clk 01:26:14]} {[%emt 00:06:44]} 7. Bd3 {[%clk 01:32:35]}
{[%emt 00:00:55]} Bxd3 {[%clk 01:26:17]} {[%emt 00:00:28]} 8. Qxd3 {[%clk
01:33:01]} {[%emt 00:00:04]} e6 {[%clk 01:25:40]} {[%emt 00:01:07]} 9. Nf3
{[%clk 01:33:20]} {[%emt 00:00:10]} Bd6 {[%clk 01:24:39]} {[%emt 00:01:31]} 10.
Bxd6 {[%clk 01:33:42]} {[%emt 00:00:08]} Qxd6 {[%clk 01:25:04]} {[%emt
00:00:05]} 11. O-O {[%clk 01:34:04]} {[%emt 00:00:07]} O-O {[%clk 01:25:31]}
{[%emt 00:00:04]} 12. Rfc1 {[%clk 01:34:20]} {[%emt 00:00:14]} Rfc8 {[%clk
01:22:17]} {[%emt 00:03:44]} 13. h3 {[%clk 01:34:41]} {[%emt 00:00:09]} Nd7
{[%clk 01:14:46]} {[%emt 00:08:01]} 1/2-1/2

[Event "2e tournoi de GMI du Barreau de Paris"]
[Site "Paris, France"]
[Date "2021.06.20"]
[Round "3.1"]
[White "Kevlishvili, Robby"]
[Black "Fedorchuk, Sergey A."]
[Result "1/2-1/2"]
[TimeControl "90+30"]
[WhiteElo "2499"]
[BlackElo "2616"]

1. e4 {[%clk 01:30:56]} {[%emt 00:00:02]} c5 {[%clk 01:30:33]} {[%emt
00:00:27]} 2. Nf3 {[%clk 01:31:20]} {[%emt 00:00:05]} e6 {[%clk 01:30:13]}
{[%emt 00:00:51]} 3. c3 {[%clk 01:31:35]} {[%emt 00:00:15]} d5 {[%clk
01:25:11]} {[%emt 00:05:32]} 4. exd5 {[%clk 01:31:51]} {[%emt 00:00:15]} Qxd5
{[%clk 01:23:59]} {[%emt 00:01:42]} 5. d4 {[%clk 01:32:12]} {[%emt 00:00:09]}
Nf6 {[%clk 01:23:29]} {[%emt 00:01:00]} 6. Na3 {[%clk 01:31:58]} {[%emt
00:00:44]} Nbd7 {[%clk 01:07:10]} {[%emt 00:16:48]} 7. Nb5 {[%clk 01:18:01]}
{[%emt 00:14:28]} Qc6 {[%clk 01:06:00]} {[%emt 00:01:39]} 8. dxc5 {[%clk
01:07:41]} {[%emt 00:10:51]} Bxc5 {[%clk 01:02:32]} {[%emt 00:03:57]} 9. b4
{[%clk 01:05:02]} {[%emt 00:03:09]} Be7 {[%clk 00:53:25]} {[%emt 00:09:36]} 10.
Nfd4 {[%clk 00:47:02]} {[%emt 00:18:32]} Qb6 {[%clk 00:52:02]} {[%emt
00:01:51]} 11. Be2 {[%clk 00:44:54]} {[%emt 00:02:38]} a6 {[%clk 00:47:14]}
{[%emt 00:05:19]} 12. Na3 {[%clk 00:45:19]} {[%emt 00:00:06]} Qc7 {[%clk
00:47:28]} {[%emt 00:00:15]} 13. Bb2 {[%clk 00:44:48]} {[%emt 00:01:01]} Nb6
{[%clk 00:43:05]} {[%emt 00:04:53]} 14. O-O {[%clk 00:40:40]} {[%emt 00:04:38]}
O-O {[%clk 00:42:39]} {[%emt 00:00:56]} 15. Qb3 {[%clk 00:35:50]} {[%emt
00:05:20]} Nfd5 {[%clk 00:38:05]} {[%emt 00:05:03]} 16. Rfc1 {[%clk 00:26:54]}
{[%emt 00:09:27]} Bd7 {[%clk 00:33:53]} {[%emt 00:04:41]} 17. b5 {[%clk
00:23:38]} {[%emt 00:03:48]} Nf4 {[%clk 00:27:06]} {[%emt 00:07:17]} 18. Bf1
{[%clk 00:23:57]} {[%emt 00:00:12]} e5 {[%clk 00:26:38]} {[%emt 00:00:57]} 19.
Nf3 {[%clk 00:24:02]} {[%emt 00:00:24]} Bc5 {[%clk 00:23:24]} {[%emt 00:03:45]}
20. c4 {[%clk 00:20:34]} {[%emt 00:03:59]} f6 {[%clk 00:22:52]} {[%emt
00:01:01]} 21. Nb1 {[%clk 00:20:12]} {[%emt 00:00:53]} Rfd8 {[%clk 00:16:03]}
{[%emt 00:07:18]} 22. a4 {[%clk 00:19:05]} {[%emt 00:01:37]} Bf5 {[%clk
00:14:06]} {[%emt 00:02:27]} 23. a5 {[%clk 00:15:07]} {[%emt 00:04:28]} Nd7
{[%clk 00:13:27]} {[%emt 00:01:09]} 24. g3 {[%clk 00:11:55]} {[%emt 00:03:42]}
Nh3+ {[%clk 00:07:09]} {[%emt 00:06:47]} 25. Bxh3 {[%clk 00:12:19]} {[%emt
00:00:07]} Bxh3 {[%clk 00:07:33]} {[%emt 00:00:06]} 26. Nc3 {[%clk 00:12:24]}
{[%emt 00:00:25]} Nf8 {[%clk 00:05:56]} {[%emt 00:05:43]} 27. Nd5 {[%clk
00:12:32]} {[%emt 00:00:29]} Qf7 {[%clk 00:06:20]} {[%emt 00:00:06]} 28. Ba3
{[%clk 00:12:08]} {[%emt 00:00:56]} Rac8 {[%clk 00:02:43]} {[%emt 00:04:06]} 29.
Bxc5 {[%clk 00:08:49]} {[%emt 00:03:49]} Rxc5 {[%clk 00:03:09]} {[%emt
00:00:04]} 30. Qe3 {[%clk 00:08:57]} {[%emt 00:00:22]} Ne6 {[%clk 00:03:24]}
{[%emt 00:00:15]} 31. bxa6 {[%clk 00:08:54]} {[%emt 00:00:34]} bxa6 {[%clk
00:03:47]} {[%emt 00:00:07]} 32. Qe4 {[%clk 00:08:26]} {[%emt 00:00:58]} Qh5
{[%clk 00:02:40]} {[%emt 00:01:36]} 33. Rd1 {[%clk 00:06:27]} {[%emt 00:02:30]}
Bg4 {[%clk 00:01:42]} {[%emt 00:01:28]} 34. Ra3 {[%clk 00:05:25]} {[%emt
00:01:32]} Nd4 {[%clk 00:00:50]} {[%emt 00:01:22]} 35. Nxd4 {[%clk 00:04:48]}
{[%emt 00:01:07]} Bxd1 {[%clk 00:00:47]} {[%emt 00:00:33]} 36. Ne6 {[%clk
00:05:10]} {[%emt 00:00:09]} Rdxd5 {[%clk 00:00:42]} {[%emt 00:00:35]} 37. Nxc5
{[%clk 00:05:28]} {[%emt 00:00:13]} Rd8 {[%clk 00:00:34]} {[%emt 00:00:37]} 38.
Rd3 {[%clk 00:05:23]} {[%emt 00:00:35]} Rxd3 {[%clk 00:00:32]} {[%emt
00:00:32]} 39. Qxd3 {[%clk 00:05:48]} {[%emt 00:00:05]} Bf3 {[%clk 00:00:39]}
{[%emt 00:00:22]} 40. Nxa6 {[%clk 00:05:44]} {[%emt 00:00:35]} h6 {[%clk
00:00:45]} {[%emt 00:00:24]} 41. Nb4 {[%clk 00:05:40]} {[%emt 00:00:34]} Kh8
{[%clk 00:00:41]} {[%emt 00:00:34]} 42. Nd5 {[%clk 00:05:55]} {[%emt 00:00:16]}
e4 {[%clk 00:00:35]} {[%emt 00:00:36]} 43. Qc3 {[%clk 00:04:50]} {[%emt
00:01:35]} e3 {[%clk 00:00:33]} {[%emt 00:00:32]} 44. Qxe3 {[%clk 00:05:00]}
{[%emt 00:00:19]} Bxd5 {[%clk 00:00:56]} {[%emt 00:00:07]} 45. cxd5 {[%clk
00:05:05]} {[%emt 00:00:25]} Qd1+ {[%clk 00:01:22]} {[%emt 00:00:04]} 1/2-1/2

[ePGN "0.1;DGT LiveChess/2.2.5"]

[Event "2e tournoi de GMI du Barreau de Paris"]
[Site "Paris, France"]
[Date "2021.06.20"]
[Round "4.1"]
[White "Fedorchuk, Sergey A."]
[Black "Milliet, Sophie"]
[Result "1/2-1/2"]
[TimeControl "90+30"]
[WhiteElo "2616"]
[BlackElo "2407"]

1. e4 {[%clk 01:30:55]} {[%emt 00:00:03]} e5 {[%clk 01:30:54]} {[%emt
00:00:07]} 2. Bc4 {[%clk 01:31:12]} {[%emt 00:00:12]} Nf6 {[%clk 01:31:13]}
{[%emt 00:00:11]} 3. d3 {[%clk 01:31:35]} {[%emt 00:00:07]} c6 {[%clk
01:28:51]} {[%emt 00:02:53]} 4. Nf3 {[%clk 01:31:35]} {[%emt 00:00:28]} Be7
{[%clk 01:23:47]} {[%emt 00:05:34]} 5. Bb3 {[%clk 01:26:19]} {[%emt 00:05:46]}
d6 {[%clk 01:22:16]} {[%emt 00:02:01]} 6. O-O {[%clk 01:24:52]} {[%emt
00:01:56]} O-O {[%clk 01:22:34]} {[%emt 00:00:13]} 7. Re1 {[%clk 01:24:18]}
{[%emt 00:01:03]} Nbd7 {[%clk 01:21:07]} {[%emt 00:01:58]} 8. c3 {[%clk
01:22:30]} {[%emt 00:02:17]} Nc5 {[%clk 01:17:42]} {[%emt 00:03:56]} 9. Bc2
{[%clk 01:22:13]} {[%emt 00:00:46]} Bg4 {[%clk 01:14:56]} {[%emt 00:03:17]} 10.
h3 {[%clk 01:17:15]} {[%emt 00:05:27]} Bh5 {[%clk 01:15:12]} {[%emt 00:00:14]}
11. Nbd2 {[%clk 01:15:17]} {[%emt 00:02:28]} Nfd7 {[%clk 01:13:09]} {[%emt
00:02:34]} 12. Nf1 {[%clk 01:12:50]} {[%emt 00:02:56]} Ne6 {[%clk 00:58:06]}
{[%emt 00:15:34]} 13. Ng3 {[%clk 01:10:25]} {[%emt 00:02:54]} Bxf3 {[%clk
00:58:29]} {[%emt 00:00:07]} 14. Qxf3 {[%clk 01:10:49]} {[%emt 00:00:05]} g6
{[%clk 00:50:48]} {[%emt 00:08:12]} 15. Nf1 {[%clk 01:07:39]} {[%emt 00:03:39]}
Bg5 {[%clk 00:50:24]} {[%emt 00:00:55]} 16. Ne3 {[%clk 01:07:56]} {[%emt
00:00:12]} Kh8 {[%clk 00:47:43]} {[%emt 00:03:11]} 17. g3 {[%clk 01:03:49]}
{[%emt 00:04:37]} f5 {[%clk 00:35:13]} {[%emt 00:13:00]} 18. exf5 {[%clk
01:03:19]} {[%emt 00:00:59]} gxf5 {[%clk 00:35:34]} {[%emt 00:00:10]} 19. Nxf5
{[%clk 01:02:34]} {[%emt 00:01:15]} Bxc1 {[%clk 00:31:42]} {[%emt 00:04:22]} 20.
Raxc1 {[%clk 01:02:16]} {[%emt 00:00:48]} Ng5 {[%clk 00:28:01]} {[%emt
00:04:11]} 21. Qg4 {[%clk 00:52:36]} {[%emt 00:10:09]} Qf6 {[%clk 00:28:15]}
{[%emt 00:00:16]} 22. h4 {[%clk 00:47:34]} {[%emt 00:05:32]} Qxf5 {[%clk
00:28:17]} {[%emt 00:00:29]} 23. Qxf5 {[%clk 00:47:59]} {[%emt 00:00:04]} Rxf5
{[%clk 00:28:43]} {[%emt 00:00:03]} 24. hxg5 {[%clk 00:48:21]} {[%emt
00:00:08]} Raf8 {[%clk 00:22:56]} {[%emt 00:06:18]} 25. Re2 {[%clk 00:48:21]}
{[%emt 00:00:29]} Rxg5 {[%clk 00:17:14]} {[%emt 00:06:12]} 26. d4 {[%clk
00:42:57]} {[%emt 00:05:54]} d5 {[%clk 00:17:13]} {[%emt 00:00:31]} 27. dxe5
{[%clk 00:39:30]} {[%emt 00:03:57]} Nxe5 {[%clk 00:15:14]} {[%emt 00:02:30]} 28.
Kg2 {[%clk 00:34:36]} {[%emt 00:05:24]} Ng6 {[%clk 00:14:15]} {[%emt 00:01:28]}
29. Bxg6 {[%clk 00:32:17]} {[%emt 00:02:50]} Rxg6 {[%clk 00:14:43]} {[%emt
00:00:03]} 30. Re7 {[%clk 00:32:36]} {[%emt 00:00:11]} Rg7 {[%clk 00:13:13]}
{[%emt 00:02:00]} 31. Rce1 {[%clk 00:33:01]} {[%emt 00:00:05]} Rgf7 {[%clk
00:11:36]} {[%emt 00:02:07]} 32. f4 {[%clk 00:32:55]} {[%emt 00:00:36]} Kg7
{[%clk 00:10:28]} {[%emt 00:01:38]} 33. Kf3 {[%clk 00:32:00]} {[%emt 00:01:24]}
Rd8 {[%clk 00:07:37]} {[%emt 00:03:21]} 34. g4 {[%clk 00:28:49]} {[%emt
00:03:41]} d4 {[%clk 00:03:54]} {[%emt 00:04:14]} 35. cxd4 {[%clk 00:21:15]}
{[%emt 00:08:03]} Rxd4 {[%clk 00:04:22]} {[%emt 00:00:03]} 36. f5 {[%clk
00:21:39]} {[%emt 00:00:06]} Rd5 {[%clk 00:01:32]} {[%emt 00:03:20]} 37. Kf4
{[%clk 00:16:25]} {[%emt 00:05:43]} Rd2 {[%clk 00:01:58]} {[%emt 00:00:05]} 38.
R1e2 {[%clk 00:16:31]} {[%emt 00:00:24]} Rd1 {[%clk 00:02:03]} {[%emt
00:00:25]} 39. R2e6 {[%clk 00:09:23]} {[%emt 00:07:38]} Rf1+ {[%clk 00:00:47]}
{[%emt 00:01:46]} 40. Kg5 {[%clk 00:06:28]} {[%emt 00:03:25]} h6+ {[%clk
00:01:11]} {[%emt 00:00:07]} 41. Kh4 {[%clk 00:06:55]} {[%emt 00:00:02]} Rh1+
{[%clk 00:01:15]} {[%emt 00:00:26]} 42. Kg3 {[%clk 00:07:21]} {[%emt 00:00:04]}
Rg1+ {[%clk 00:00:34]} {[%emt 00:01:12]} 43. Kf4 {[%clk 00:04:38]} {[%emt
00:03:13]} Rf1+ {[%clk 00:00:53]} {[%emt 00:00:11]} 44. Ke5 {[%clk 00:04:12]}
{[%emt 00:00:55]} Re1+ {[%clk 00:00:56]} {[%emt 00:00:28]} 45. Kd6 {[%clk
00:03:59]} {[%emt 00:00:43]} Rd1+ {[%clk 00:00:33]} {[%emt 00:00:53]} 46. Kc7
{[%clk 00:04:24]} {[%emt 00:00:05]} Rd2 {[%clk 00:00:33]} {[%emt 00:00:31]} 47.
Rxf7 {[%clk 00:01:01]} {[%emt 00:03:53]} Kxf7 {[%clk 00:01:02]} 48. Rxh6 {[%clk
00:01:26]} {[%emt 00:00:05]} Rxb2 {[%clk 00:01:26]} {[%emt 00:00:06]} 49. Kd6
{[%clk 00:00:45]} {[%emt 00:01:10]} Rg2 {[%clk 00:01:26]} {[%emt 00:00:29]} 50.
Ke5 {[%clk 00:00:44]} {[%emt 00:00:32]} Rxg4 {[%clk 00:01:44]} {[%emt
00:00:11]} 51. Rd6 {[%clk 00:00:48]} {[%emt 00:00:26]} Ke7 {[%clk 00:00:41]}
{[%emt 00:01:33]} 52. f6+ {[%clk 00:00:52]} {[%emt 00:00:27]} Ke8 {[%clk
00:00:59]} {[%emt 00:00:07]} 53. Re6+ {[%clk 00:01:19]} {[%emt 00:00:07]} Kf8
{[%clk 00:01:17]} {[%emt 00:00:12]} 54. Re7 {[%clk 00:01:46]} {[%emt 00:00:04]}
Rg2 {[%clk 00:00:55]} {[%emt 00:00:52]} 55. Rxb7 {[%clk 00:02:08]} {[%emt
00:00:09]} Rxa2 {[%clk 00:01:16]} {[%emt 00:00:09]} 56. Rc7 {[%clk 00:02:29]}
{[%emt 00:00:08]} Re2+ {[%clk 00:01:14]} {[%emt 00:00:31]} 57. Kd6 {[%clk
00:02:55]} {[%emt 00:00:06]} Rd2+ {[%clk 00:01:05]} {[%emt 00:00:39]} 58. Ke6
{[%clk 00:03:21]} {[%emt 00:00:05]} Re2+ {[%clk 00:01:29]} {[%emt 00:00:06]} 59.
Kd6 {[%clk 00:03:48]} {[%emt 00:00:03]} Rd2+ {[%clk 00:01:55]} {[%emt
00:00:04]} 60. Ke6 {[%clk 00:04:14]} {[%emt 00:00:04]} Re2+ {[%clk 00:02:20]}
{[%emt 00:00:04]} 1/2-1/2